{"text_format":"1","workbook":"xlsx","n_sheets":5,"sheets":["Présentation entreprise","Unité de travail 1","Globalité établissement","Risque épidémique","Plan d'action récapitulatif"],"not_rendered":{"charts":0,"images":0,"macros":1,"external_links":2,"defined_names":19,"comments":5,"pivot_tables":0},"unopened":[],"bounds":{"document_bytes":16777216,"sheet_cells":100000,"rows_first":2000,"rows_last":500,"rows_between":2000,"halvings":0,"cell_chars":16384,"cell_head_chars":4096},"cells_cut":0,"cells_raw":0,"read":"whole","date_system":"1900"}

{"sheet":"Présentation entreprise","index":0,"n_rows":63,"n_cols":11,"rows_kept":63,"cut":false,"hidden":false,"merged":[[60,10,60,11],[55,5,55,9],[47,5,49,11],[51,1,53,4],[2,1,3,11],[36,1,41,4],[55,1,63,4],[12,5,15,11],[18,5,20,11],[32,5,34,11],[12,1,15,4],[18,1,20,4],[28,1,30,3],[24,1,26,4],[24,5,26,11],[21,1,23,4],[21,5,23,11],[7,1,7,11],[61,10,61,11],[62,10,62,11],[32,1,34,4],[59,6,59,9],[60,6,60,9],[61,6,61,9],[62,6,62,9],[59,10,59,11],[55,10,55,11],[38,8,40,9],[38,10,40,11],[43,1,45,4],[43,5,45,11],[37,6,37,7],[38,6,38,7],[39,6,39,7],[5,0,5,6],[5,7,5,11],[56,6,56,9],[57,6,57,9],[58,6,58,9],[56,10,56,11],[57,10,57,11],[58,10,58,11],[51,5,53,11],[40,6,40,7],[9,1,9,4],[9,5,9,11],[30,5,30,11],[28,5,28,11],[29,5,29,11],[47,1,49,4]]}
[]
[]
[null,"Document unique des risques professionnels - DUERP"]
[]
[]
["Version - date dernière màj :"]
[]
[null,"Modèle de document établi en application des articles L. 4121-3 et R. 4121-1 du Code du travail - par Caroline CHRISTMANN - toute revente interdite."]
[]
[null,"Entreprise ",null,null,null,"Nom / raison sociale"]
[]
[]
[null,"Adresse du site"]
[]
[]
[]
[]
[]
[null,"Nom du responsable en charge du document unique"]
[]
[]
[null,"Noms des personnes ayant participé au groupe de travail"]
[]
[]
[null,"Nom du salarié compétent",null,null,null,"Voir bonus \"sources utiles\" en annexe"]
[]
[]
[]
[null,"Coordonnées de l'établissement",null,null,"Téléphone 1"]
[null,null,null,null,"Téléphone 2"]
[null,null,null,null,"Mail"]
[]
[null,"Date de création du DUERP"]
[]
[]
[]
[null,"Dates de mise à jour du DUERP",null,null,null,null,"Ne jamais \"écraser\" une version précédente"]
[null,null,null,null,null,"V1","2025-05-19"]
[null,null,null,null,null,"V2","Date",null,"Date limite de la prochaine mise à jour",null,{"$f":"IF(OR(F48=\">11 salariés\",F52=\"Oui\"),IF(F44=\"\",\"\",EDATE(F44,12)),\"Pas de màj obligatoire\")","v":"Pas de màj obligatoire"}]
[null,null,null,null,null,"V3","Date"]
[null,null,null,null,null,"V4","Date"]
[]
[]
[null,"Dernière mise à jour"]
[]
[]
[]
[null,"Effectifs salariés"]
[]
[]
[]
[null,"Changement dans les méthodes de travail depuis la dernière mise à jour du DUERP"]
[]
[]
[]
[null,"Unités de travail identifiées",null,null,null,"Unités de travail",null,null,null,null,"Nombre de salariés concernés"]
[null,null,null,null,null,"UT1","Nom"]
[null,null,null,null,null,"UT2","Nom"]
[null,null,null,null,null,"UT3","Nom"]
[null,null,null,null,null,"UT4","Nom"]
[null,null,null,null,null,"UT5","Nom"]
[null,null,null,null,null,"UT6","Nom"]
[null,null,null,null,null,"UT7","Nom"]

{"sheet":"Unité de travail 1","index":1,"n_rows":64,"n_cols":14,"rows_kept":64,"cut":false,"hidden":false,"merged":[[15,9,15,13],[18,2,18,3],[36,1,38,1],[40,1,41,1],[14,1,14,3],[16,1,16,4],[16,5,17,5],[23,1,24,1],[27,1,29,1],[22,2,22,3],[25,2,25,3],[26,2,26,3],[30,2,30,3],[31,2,31,3],[32,2,32,3],[33,2,33,3],[11,1,11,3],[11,4,11,5],[11,6,11,7],[14,4,14,5],[14,6,14,7],[12,4,12,5],[13,4,13,5],[12,1,12,3],[13,1,13,3],[12,6,12,7],[13,6,13,7],[9,1,9,3],[9,4,9,5],[9,6,9,7],[10,1,10,3],[10,4,10,5],[10,6,10,7],[16,13,17,13],[4,1,4,3],[4,4,4,5],[4,6,4,7],[5,1,5,3],[5,4,5,5],[5,6,5,7],[6,1,6,3],[6,4,6,5],[6,6,6,7],[7,1,7,3],[7,4,7,5],[7,6,7,7],[8,1,8,3],[8,4,8,5],[8,6,8,7],[60,6,60,7],[16,9,17,9],[16,10,17,10],[16,11,17,11],[16,12,17,12],[16,6,16,8],[44,2,44,3],[45,2,45,3],[17,2,17,3],[19,2,19,3],[20,2,20,3],[21,2,21,3],[34,2,34,3],[35,2,35,3],[57,2,57,3],[58,2,58,3],[0,0,0,13],[52,2,52,3],[53,2,53,3],[54,2,54,3],[55,2,55,3],[56,2,56,3],[46,2,46,3],[47,2,47,3],[48,2,48,3],[49,2,49,3],[51,2,51,3],[39,2,39,3],[42,2,42,3],[43,2,43,3]]}
["GRILLE D'ÉVALUATION POUR L'UNITÉ DE TRAVAIL : nom de l'UT"]
[]
[]
[]
[null,"Identification des tâches : ",null,null,"Équipements et matériels utilisés : ",null,"Produits (ou types de) utilisés : "]
[null,"Lister les tâches réalisées par les salariés",null,null,"Equipements techniques"]
[null,"Exemples : charger le camion, décharger les palettes, ranger le poste de travail, etc.",null,null,"Exemples : échelle, chariot élévateur, pelle, etc."]
[]
[]
[]
[null,null,null,null,"Equipements de protection individuelle"]
[null,null,null,null,"Exemples : gants anticoupure, masque FFP2, blouse, etc."]
[]
[]
[]
[null,null,null,null,null,null,null,null,null,"Plan d'actions"]
[null,"Détermination du risque",null,null,null,"Moyens de prévention  \nactuellement en place (Equipements de protection collective, de protection individuelle, matériel, formations, mesures organisationnelles, etc.)","Évaluation du risque résiduel",null,null,"Action à mettre en place","Responsable de l'action","Délai","Statut de l'action","Commentaires"]
[null,"Type de risque","Phénomène dangereux ou défaut constaté pouvant être à l'origine d'un risque",null,"Dommage éventuel (conséquences sur la santé, conséquences matérielles)",null,"Fréquence d'exposition (cotation 1 à 4)","Gravité des dommages (cotation 1 à 4)","Niveau de priorité\n(calcul automatique)"]
[null,"Exemples","Voir guide - et exemples dans tableau de sélection des catégories de risque - colonne \"votre entreprise est concernée quand ou si...\"",null,"Voir guide - et exemples dans tableau de sélection des catégories de risque - colonne \" les dommages possibles sont...\"","Pauses régulières, équipements de protection individuelle, formation annuelle, roulement entre les équipes, etc.","Consulter le guide section \"l'évaluation des risques\"","Consulter le guide section \"l'évaluation des risques\"",{"$f":"IF(OR(AND(H19=1,G19=1),AND(H19=2,G19=1),AND(H19=1,G19=2),AND(H19=1,G19=3),AND(H19=1,G19=4)),\"3\",IF(OR(AND(H19=3,G19=1),AND(H19=2,G19=2),AND(H19=3,G19=2),AND(H19=2,G19=3),AND(H19=2,G19=4)),\"2\",IF(OR(AND(H19=4,G19=1),AND(H19=4,G19=2),AND(H19=3,G19=3),AND(H19=4,G19=3),AND(H19=3,G19=4),AND(H19=4,G19=4)),\"1\",\"Calcul auto\")))","v":"Calcul auto"},"Exemples : formation, achat matériel, aucune action pour cette année etc.","Jean","Ex : 2 mois signature convention\nmax 6 mois formation","Initiée","Ex : L'organisme de formation XX a été contacté et nous sommes dans l'attente d'un devis pour bénéficier de la formation dans l'année."]
[1,"Ambiances thermiques (froid, chaud, intempéries)",null,null,null,null,null,null,{"$f":"IF(OR(AND(H20=1,G20=1),AND(H20=2,G20=1),AND(H20=1,G20=2),AND(H20=1,G20=3),AND(H20=1,G20=4)),\"3\",IF(OR(AND(H20=3,G20=1),AND(H20=2,G20=2),AND(H20=3,G20=2),AND(H20=2,G20=3),AND(H20=2,G20=4)),\"2\",IF(OR(AND(H20=4,G20=1),AND(H20=4,G20=2),AND(H20=3,G20=3),AND(H20=4,G20=3),AND(H20=3,G20=4),AND(H20=4,G20=4)),\"1\",\"Calcul auto\")))","v":"Calcul auto"}]
[2,"Ambiances sonores",null,null,null,null,null,null,{"$f":"IF(OR(AND(H21=1,G21=1),AND(H21=2,G21=1),AND(H21=1,G21=2),AND(H21=1,G21=3),AND(H21=1,G21=4)),\"3\",IF(OR(AND(H21=3,G21=1),AND(H21=2,G21=2),AND(H21=3,G21=2),AND(H21=2,G21=3),AND(H21=2,G21=4)),\"2\",IF(OR(AND(H21=4,G21=1),AND(H21=4,G21=2),AND(H21=3,G21=3),AND(H21=4,G21=3),AND(H21=3,G21=4),AND(H21=4,G21=4)),\"1\",\"Calcul auto\")))","v":"Calcul auto"}]
[3,"Ambiances lumineuses",null,null,null,null,null,null,"Calcul auto"]
[4,"Rayonnements (Ultra-violets, lasers, Infra-rouges, ionisants, magnétiques)",null,null,null,null,null,null,"Calcul auto"]
[5,"Vibrations (mains-bras, corps entiers)","Mains-Bras",null,null,null,null,null,"Calcul auto"]
[6,null,"Corps entier",null,null,null,null,null,"Calcul auto"]
[7,"Travaux hyperbares",null,null,null,null,null,null,"Calcul auto"]
[8,"Risques chimiques",null,null,null,null,null,null,"Calcul auto"]
[9,"Risques liés à l'ambiance atmosphérique (poussières, fibres, fumées, aérosols, vapeurs, gaz…)","Emissions de poussières et fibres",null,null,null,null,null,"Calcul auto"]
[10,null,"Emissions de gaz et fumées",null,null,null,null,null,"Calcul auto"]
[11,null,"Emissions de vapeurs/aérosols/\nbrouillards",null,null,null,null,null,"Calcul auto"]
[12,"Risques biologiques ",null,null,null,null,null,null,"Calcul auto"]
[13,"Risques allergiques",null,null,null,null,null,null,"Calcul auto"]
[14,"Postures contraignantes",null,null,null,null,null,null,"Calcul auto"]
[15,"Gestes répétitifs",null,null,null,null,null,null,"Calcul auto"]
[16,"Manutention manuelle, charge physique",null,null,null,null,null,null,"Calcul auto"]
[17,"Travail en espace confiné",null,null,null,null,null,null,"Calcul auto"]
[18,"Chutes (de plain-pied, de hauteur, d'objets)","De plain-pied",null,null,null,null,null,"Calcul auto"]
[19,null,"De hauteur",null,null,null,null,null,"Calcul auto"]
[20,null,"D'objets",null,null,null,null,null,"Calcul auto"]
[21,"Coupures",null,null,null,null,null,null,"Calcul auto"]
[22,"Brûlures","Thermiques",null,null,null,null,null,"Calcul auto"]
[23,null,"Chimiques",null,null,null,null,null,"Calcul auto"]
[24,"Piqûres",null,null,null,null,null,null,"Calcul auto"]
[25,"Risques liés à des machines dangereuses (sectionnement, écrasement, happement...)",null,null,null,null,null,null,"Calcul auto"]
[26,"Risques liés aux engins et appareils de levage",null,null,null,null,null,null,"Calcul auto"]
[27,"Risques liés aux engins de chantiers",null,null,null,null,null,null,"Calcul auto"]
[28,"Risques routiers (VL, PL, vélo)",null,null,null,null,null,null,"Calcul auto"]
[29,"Risques électriques",null,null,null,null,null,null,"Calcul auto"]
[30,"Risques d'explosion",null,null,null,null,null,null,"Calcul auto"]
[31,"Risques d'incendie",null,null,null,null,null,null,"Calcul auto"]
[null,"Risques psychosociaux"]
[32,"Intensité et complexité du travail",null,null,null,null,null,null,"Calcul auto"]
[33,"Rythme de travail",null,null,null,null,null,null,"Calcul auto"]
[34,"Exigences émotionnelles",null,null,null,null,null,null,"Calcul auto"]
[35,"Ethiques professionnelles, sens du travail, valeur au travail",null,null,null,null,null,null,"Calcul auto"]
[36,"Autonomie de travail et latitude décisionnelle",null,null,null,null,null,null,"Calcul auto"]
[37,"Rapport sociaux entre collègues",null,null,null,null,null,null,"Calcul auto"]
[38,"Rapport sociaux avec la hiérarchie",null,null,null,null,null,null,"Calcul auto"]
[39,"Environnement socio-économique",null,null,null,null,null,null,"Calcul auto"]
[]
[null,null,null,null,null,null,"Récapitulatif"]
[null,null,null,null,null,null,"Niveau de priorité 1",{"$f":"COUNTIF(I20:I59,1)","v":0}]
[null,null,null,null,null,null,"Niveau de priorité 2",{"$f":"COUNTIF(I21:I60,2)","v":0}]
[null,null,null,null,null,null,"Niveau de priorité 3",{"$f":"COUNTIF(I22:I61,3)","v":0}]

{"sheet":"Globalité établissement","index":2,"n_rows":26,"n_cols":14,"rows_kept":26,"cut":false,"hidden":false,"merged":[[0,0,0,13],[3,9,3,13],[4,1,4,4],[4,5,5,5],[4,6,4,8],[4,9,5,9],[4,10,5,10],[4,11,5,11],[8,2,8,3],[9,2,9,3],[11,2,11,3],[4,12,5,12],[4,13,5,13],[5,2,5,3],[6,2,6,3],[7,2,7,3],[20,2,20,3],[22,6,22,7],[10,2,10,3],[14,2,14,3],[15,2,15,3],[16,2,16,3],[17,2,17,3],[18,2,18,3],[19,2,19,3],[13,2,13,3]]}
["GRILLE D'ÉVALUATION POUR LA GLOBALITE DE L'ETABLISSEMENT"]
[]
[]
[null,null,null,null,null,null,null,null,null,"Plan d'actions"]
[null,"Détermination du risque",null,null,null,"Moyens de prévention  \nactuellement en place (Equipements de protection collective, de protection individuelle, matériel, formations, mesures organisationnelles, etc.)","Évaluation du risque résiduel",null,null,"Action à mettre en place","Responsable de l'action","Délai","Statut de l'action","Commentaires"]
[null,"Type de risque","Phénomène dangereux ou défaut constaté pouvant être à l'origine d'un risque",null,"Dommage éventuel (conséquences sur la santé, conséquences matérielles)",null,"Fréquence d'exposition (cotation 1 à 4)","Gravité des dommages (cotation 1 à 4)","Niveau de priorité\n(calcul automatique)"]
[1,"Hygiène collective",null,null,null,null,null,null,{"$f":"IF(OR(AND(H7=1,G7=1),AND(H7=2,G7=1),AND(H7=1,G7=2),AND(H7=1,G7=3),AND(H7=1,G7=4)),\"3\",IF(OR(AND(H7=3,G7=1),AND(H7=2,G7=2),AND(H7=3,G7=2),AND(H7=2,G7=3),AND(H7=2,G7=4)),\"2\",IF(OR(AND(H7=4,G7=1),AND(H7=4,G7=2),AND(H7=3,G7=3),AND(H7=4,G7=3),AND(H7=3,G7=4),AND(H7=4,G7=4)),\"1\",\"Calcul auto\")))","v":"Calcul auto"}]
[2,"Risque électrique",null,null,null,null,null,null,{"$f":"IF(OR(AND(H8=1,G8=1),AND(H8=2,G8=1),AND(H8=1,G8=2),AND(H8=1,G8=3),AND(H8=1,G8=4)),\"3\",IF(OR(AND(H8=3,G8=1),AND(H8=2,G8=2),AND(H8=3,G8=2),AND(H8=2,G8=3),AND(H8=2,G8=4)),\"2\",IF(OR(AND(H8=4,G8=1),AND(H8=4,G8=2),AND(H8=3,G8=3),AND(H8=4,G8=3),AND(H8=3,G8=4),AND(H8=4,G8=4)),\"1\",\"Calcul auto\")))","v":"Calcul auto"}]
[3,"Risque d'explosion",null,null,null,null,null,null,"Calcul auto"]
[4,"Risque d'incendie",null,null,null,null,null,null,"Calcul auto"]
[5,"Risque lié à la co-activité",null,null,null,null,null,null,"Calcul auto"]
[6,"Organisation des secours",null,null,null,null,null,null,"Calcul auto"]
[null,"Risques psychosociaux"]
[7,"Intensité et complexité du travail",null,null,null,null,null,null,"Calcul auto"]
[8,"Rythme de travail",null,null,null,null,null,null,"Calcul auto"]
[9,"Exigences émotionnelles",null,null,null,null,null,null,"Calcul auto"]
[10,"Ethiques professionnelles, sens du travail, valeur au travail",null,null,null,null,null,null,"Calcul auto"]
[11,"Autonomie de travail et latitude décisionnelle",null,null,null,null,null,null,"Calcul auto"]
[12,"Rapport sociaux entre collègues",null,null,null,null,null,null,"Calcul auto"]
[13,"Rapport sociaux avec la hiérarchie",null,null,null,null,null,null,"Calcul auto"]
[14,"Environnement socio-économique",null,null,null,null,null,null,"Calcul auto"]
[]
[null,null,null,null,null,null,"Récapitulatif"]
[null,null,null,null,null,null,"Niveau de priorité 1",{"$f":"COUNTIF(I7:I21,1)","v":0}]
[null,null,null,null,null,null,"Niveau de priorité 2",{"$f":"COUNTIF(I8:I22,2)","v":0}]
[null,null,null,null,null,null,"Niveau de priorité 3",{"$f":"COUNTIF(I9:I23,3)","v":0}]

{"sheet":"Risque épidémique","index":3,"n_rows":39,"n_cols":18,"rows_kept":39,"cut":false,"hidden":false,"merged":[[4,0,4,2],[4,3,4,9],[4,10,4,12],[5,0,5,2],[5,3,5,9],[5,10,5,12],[6,0,6,2],[6,3,6,9],[6,10,6,12],[7,0,7,2],[7,3,7,9],[7,10,7,12],[8,0,8,2],[8,3,8,9],[8,10,8,12],[9,0,9,2],[9,3,9,9],[9,10,9,12],[15,15,16,15],[15,16,16,16],[10,0,10,2],[10,3,10,9],[10,10,10,12],[11,0,11,2],[11,3,11,9],[11,10,11,12],[15,17,16,17],[0,0,0,17],[35,10,35,11],[32,0,33,0],[14,13,14,17],[17,0,24,0],[26,0,31,0],[12,0,12,2],[12,3,12,9],[12,10,12,12],[15,0,15,2],[15,3,15,8],[15,9,16,9],[15,10,15,12],[15,13,16,13],[15,14,16,14]]}
["Risque épidémique ou de pandémie"]
[]
[]
[]
["Identification des tâches nouvelles en période de pandémie",null,null,"Équipements et matériels utilisés spécifiquement durant la période",null,null,null,null,null,null,"Produits spécifiques utilisés pendant la période"]
[]
[]
[]
[]
[]
[]
[]
[]
[]
[null,null,null,null,null,null,null,null,null,null,null,null,null,"Plan d'actions"]
["Détermination du risque",null,null,"Unité(s) de travail concernée(s)",null,null,null,null,null,"Moyens de prévention  \nactuellement en place (équipements de protection collective, de protection individuelle, matériel, formations, mesures organisationnelles…)","Évaluation du risque résiduel",null,null,"Action(s) à mettre en place","Responsable de l'action","Délai","Statut de l'action","Commentaires"]
["Type de risque","Phénomène dangereux ou défaut constaté pouvant être à l'origine d'un risque","Dommage éventuel (conséquences sur la santé, conséquences matérielles)","Unité de travail 1","Unité de travail 2","Unité de travail 3","Unité de travail 4","Unité de travail 5","Unité de travail 6",null,"Fréquence d'exposition (cotation 1 à 4)","Gravité des dommages (cotation 1 à 4)","Niveau de priorité\n(calcul automatique)"]
["Risque biologique",null,null,null,null,null,null,null,null,null,"Consulter la notice section \"l'évaluation des risques\"","Consulter la notice section \"l'évaluation des risques\"",{"$f":"IF(OR(AND(L18=1,K18=1),AND(L18=2,K18=1),AND(L18=1,K18=2),AND(L18=1,K18=3),AND(L18=1,K18=4)),\"3\",IF(OR(AND(L18=3,K18=1),AND(L18=2,K18=2),AND(L18=3,K18=2),AND(L18=2,K18=3),AND(L18=2,K18=4)),\"2\",IF(OR(AND(L18=4,K18=1),AND(L18=4,K18=2),AND(L18=3,K18=3),AND(L18=4,K18=3),AND(L18=3,K18=4),AND(L18=4,K18=4)),\"1\",\"Calcul auto\")))","v":"Calcul auto"}]
[null,null,null,null,null,null,null,null,null,null,null,null,{"$f":"IF(OR(AND(L19=1,K19=1),AND(L19=2,K19=1),AND(L19=1,K19=2),AND(L19=1,K19=3),AND(L19=1,K19=4)),\"3\",IF(OR(AND(L19=3,K19=1),AND(L19=2,K19=2),AND(L19=3,K19=2),AND(L19=2,K19=3),AND(L19=2,K19=4)),\"2\",IF(OR(AND(L19=4,K19=1),AND(L19=4,K19=2),AND(L19=3,K19=3),AND(L19=4,K19=3),AND(L19=3,K19=4),AND(L19=4,K19=4)),\"1\",\"Calcul auto\")))","v":"Calcul auto"}]
[null,null,null,null,null,null,null,null,null,null,null,null,{"$f":"IF(OR(AND(L20=1,K20=1),AND(L20=2,K20=1),AND(L20=1,K20=2),AND(L20=1,K20=3),AND(L20=1,K20=4)),\"3\",IF(OR(AND(L20=3,K20=1),AND(L20=2,K20=2),AND(L20=3,K20=2),AND(L20=2,K20=3),AND(L20=2,K20=4)),\"2\",IF(OR(AND(L20=4,K20=1),AND(L20=4,K20=2),AND(L20=3,K20=3),AND(L20=4,K20=3),AND(L20=3,K20=4),AND(L20=4,K20=4)),\"1\",\"Calcul auto\")))","v":"Calcul auto"}]
[null,null,null,null,null,null,null,null,null,null,null,null,{"$f":"IF(OR(AND(L21=1,K21=1),AND(L21=2,K21=1),AND(L21=1,K21=2),AND(L21=1,K21=3),AND(L21=1,K21=4)),\"3\",IF(OR(AND(L21=3,K21=1),AND(L21=2,K21=2),AND(L21=3,K21=2),AND(L21=2,K21=3),AND(L21=2,K21=4)),\"2\",IF(OR(AND(L21=4,K21=1),AND(L21=4,K21=2),AND(L21=3,K21=3),AND(L21=4,K21=3),AND(L21=3,K21=4),AND(L21=4,K21=4)),\"1\",\"Calcul auto\")))","v":"Calcul auto"}]
[null,null,null,null,null,null,null,null,null,null,null,null,"Calcul auto"]
[null,null,null,null,null,null,null,null,null,null,null,null,"Calcul auto"]
[null,null,null,null,null,null,null,null,null,null,null,null,"Calcul auto"]
[null,null,null,null,null,null,null,null,null,null,null,null,"Calcul auto"]
["Postures contraignantes",null,null,null,null,null,null,null,null,null,null,null,"Calcul auto"]
["Charge mentale, organisation du travail",null,null,null,null,null,null,null,null,null,null,null,"Calcul auto"]
[null,null,null,null,null,null,null,null,null,null,null,null,"Calcul auto"]
[null,null,null,null,null,null,null,null,null,null,null,null,"Calcul auto"]
[null,null,null,null,null,null,null,null,null,null,null,null,"Calcul auto"]
[null,null,null,null,null,null,null,null,null,null,null,null,"Calcul auto"]
[null,null,null,null,null,null,null,null,null,null,null,null,"Calcul auto"]
["Risques liés à l'utilisation de produits chimiques",null,null,null,null,null,null,null,null,null,null,null,"Calcul auto"]
[null,null,null,null,null,null,null,null,null,null,null,null,"Calcul auto"]
[]
[null,null,null,null,null,null,null,null,null,null,"Récapitulatif"]
[null,null,null,null,null,null,null,null,null,null,"Niveau de priorité 1",{"$f":"COUNTIF(M18:M34,1)","v":0}]
[null,null,null,null,null,null,null,null,null,null,"Niveau de priorité 2",{"$f":"COUNTIF(M18:M34,2)","v":0}]
[null,null,null,null,null,null,null,null,null,null,"Niveau de priorité 3",{"$f":"COUNTIF(M18:M34,3)","v":0}]

{"sheet":"Plan d'action récapitulatif","index":4,"n_rows":124,"n_cols":16,"rows_kept":124,"cut":false,"hidden":false,"merged":[[6,0,6,15],[12,0,12,15],[21,0,21,15],[0,0,0,15],[4,15,5,15],[4,0,5,0],[4,1,5,1],[4,2,4,9],[4,10,5,10],[4,11,5,11],[4,12,5,12],[4,13,5,13],[4,14,5,14]]}
["Plan d'action annuel"]
[]
[]
[]
["Type de risques","Phénomène dangereux ou défaut constaté pouvant être à l'origine d'un risque","Unité de travail",null,null,null,null,null,null,null,"Niveau de priorité \n(compte tenu des mesures de prévention en place, de la fréquence d'exposition et de la gravité des dommages éventuels)","Action à mettre en place","Responsable de l'action","Délai","Statut de l'action","Commentaires"]
[null,null,"Unité 1","Unité 2","Unité 3","Unité 4","Unité 5","Unité 6","Unité 7","Tous"]
["Actions urgentes et prioritaires"]
[null,null,false,false,false,false,false,false,false,false,1]
[null,null,false,false,false,false,false,false,false,false,1]
[null,null,false,false,false,false,false,false,false,false,1]
[null,null,false,false,false,false,false,false,false,false,1]
[null,null,false,false,false,false,false,false,false,false,1]
["Actions importantes"]
[null,null,false,false,false,false,false,false,false,false,2]
[null,null,false,false,false,false,false,false,false,false,2]
[null,null,false,false,false,false,false,false,false,false,2]
[null,null,false,false,false,false,false,false,false,false,2]
[null,null,false,false,false,false,false,false,false,false,2]
[null,null,false,false,false,false,false,false,false,false,2]
[null,null,false,false,false,false,false,false,false,false,2]
[null,null,false,false,false,false,false,false,false,false,2]
["Autres actions identifiées"]
[null,null,false,false,false,false,false,false,false,false,3]
[null,null,false,false,false,false,false,false,false,false,3]
[null,null,false,false,false,false,false,false,false,false,3]
[null,null,false,false,false,false,false,false,false,false,3]
[null,null,false,false,false,false,false,false,false,false,3]
[null,null,false,false,false,false,false,false,false,false,3]
[null,null,false,false,false,false,false,false,false,false,3]
[null,null,false,false,false,false,false,false,false,false,3]
[]
[]
[]
[]
[]
[]
[]
[]
[]
[]
[]
[]
[]
[]
[]
[]
[]
[]
[]
[]
[]
[]
[]
[]
[]
[]
[]
[]
[]
[]
[]
[]
[]
[]
[]
[]
[]
[]
[]
[]
[]
[]
[]
[]
[]
[]
[]
[]
[]
[]
[]
[]
[]
[]
[]
[]
[]
[]
[]
[null,null,null,null,null,null,null,null,null,null,null,"Ambiances thermiques (froid, chaud, intempéries)"]
[null,null,null,null,null,null,null,null,null,null,null,"Ambiances sonores"]
[null,null,null,null,null,null,null,null,null,null,null,"Ambiances lumineuses"]
[null,null,null,null,null,null,null,null,null,null,null,"Rayonnements (Ultra-violets, lasers, Infra-rouges, ionisants, magnétiques)"]
[null,null,null,null,null,null,null,null,null,null,null,"Vibrations (mains-bras, corps entiers)"]
[null,null,null,null,null,null,null,null,null,null,null,"Travaux hyperbares"]
[null,null,null,null,null,null,null,null,null,null,null,"Risques chimiques"]
[null,null,null,null,null,null,null,null,null,null,null,"Risques liés à l'ambiance atmosphérique (poussières, fibres, fumées, aérosols, vapeurs, gaz…)"]
[null,null,null,null,null,null,null,null,null,null,null,"Risques biologiques "]
[null,null,null,null,null,null,null,null,null,null,null,"Risques allergiques"]
[null,null,null,null,null,null,null,null,null,null,null,"Postures contraignantes"]
[null,null,null,null,null,null,null,null,null,null,null,"Gestes répétitifs"]
[null,null,null,null,null,null,null,null,null,null,null,"Manutention manuelle, charge physique"]
[null,null,null,null,null,null,null,null,null,null,null,"Travail en espace confiné"]
[null,null,null,null,null,null,null,null,null,null,null,"Travail isolé"]
[null,null,null,null,null,null,null,null,null,null,null,"Charge mentale, organisation du travail"]
[null,null,null,null,null,null,null,null,null,null,null,"Violences au travail"]
[null,null,null,null,null,null,null,null,null,null,null,"Chutes (de plain-pied, de hauteur, d'objets)"]
[null,null,null,null,null,null,null,null,null,null,null,"Coupures"]
[null,null,null,null,null,null,null,null,null,null,null,"Brûlures"]
[null,null,null,null,null,null,null,null,null,null,null,"Piqûres"]
[null,null,null,null,null,null,null,null,null,null,null,"Risques liés à des machines dangereuses (sectionnement, écrasement, happement...)"]
[null,null,null,null,null,null,null,null,null,null,null,"Risques liés aux engins et appareils de levage"]
[null,null,null,null,null,null,null,null,null,null,null,"Risques liés aux engins de chantiers"]
[null,null,null,null,null,null,null,null,null,null,null,"Risques routiers (VL, PL, vélo)"]
[null,null,null,null,null,null,null,null,null,null,null,"Risques électriques"]
[null,null,null,null,null,null,null,null,null,null,null,"Risques d'explosion"]
[null,null,null,null,null,null,null,null,null,null,null,"Risques d'incendie"]
[null,null,null,null,null,null,null,null,null,null,null,"Horaires de travail décalés"]
[null,null,null,null,null,null,null,null,null,null,null,"Hygiène collective"]
[null,null,null,null,null,null,null,null,null,null,null,"Risques électriques"]
[null,null,null,null,null,null,null,null,null,null,null,"Risques d'explosion"]
[null,null,null,null,null,null,null,null,null,null,null,"Risques d'incendie"]
[null,null,null,null,null,null,null,null,null,null,null,"Risques liés à la co-activité"]
[null,null,null,null,null,null,null,null,null,null,null,"Organisation des secours"]